[Event "Turkish Second League 2019"]
[Site "Konya"]
[Date "2019.07.23"]
[Round "2"]
[White "Baltag, Iulian"]
[Black "Babayev, Talib"]
[Result "1/2-1/2"]
[ECO "E91"]
[WhiteElo "2398"]
[BlackElo "2274"]
[Annotator "ChessBase"]
[PlyCount "62"]
[EventDate "2019.07.22"]
[EventType "team-tourn"]
[EventCountry "TUR"]
[SourceTitle "playchess.com"]
[Source "ChessBase"]
[SourceQuality "1"]
[TimeControl "5400+30"]

1. d4 {[%emt 0:00:30]} Nf6 {[%emt 0:00:30]} 2. c4 {[%emt 0:00:30]} g6 {[%emt 0:00:00]} 3. Nc3 {[%emt 0:00:00]} Bg7 {[%emt 0:00:00]} 4. e4 {[%emt 0:00:00]} d6 {[%emt 0:00:00]} 5. Be2 {[%emt 0:00:30]} O-O {[%emt 0:00:00]} 6. Bg5 {[%emt 0:00:30]} Na6 {[%emt 0:00:30]} 7. Nf3 {[%emt 0:00:30]} Qe8 {[%emt 0:00:30]} 8. O-O {[%emt 0:00:30]} e5 {[%emt 0:00:00]} 9. c5 {[%emt 0:00:30]} exd4 {[%emt 0:07:00]} 10. Bxf6 {[%emt 0:00:30]} dxc3 {[%emt 0:00:00]} 11. Bxg7 {[%emt 0:01:30]} Kxg7 {[%emt 0:00:00]} 12. cxd6 {[%emt 0:00:30]} cxb2 {[%emt 0:04:30]} 13. Qd4+ {[%emt 0:02:30]} Kg8 {[%emt 0:01:30]} 14. Qxb2 {[%emt 0:00:30]} cxd6 {[%emt 0:00:30]} 15. Bxa6 {[%emt 0:01:30]} bxa6 {[%emt 0:00:30]} 16. Rfe1 {[%emt 0:00:00]} Bg4 {[%emt 0:02:30]} 17. Nd4 {[%emt 0:00:00]} Qe5 {[%emt 0:00:30]} 18. Qd2 {[%emt 0:00:30]} Rac8 {[%emt 0:00:30]} 19. f4 {[%emt 0:01:30]} Qf6 {[%emt 0:03:30]} 20. h3 {[%emt 0:02:30]} Rc4 {[%emt 0:05:30]} 21. Nb3 {[%emt 0:05:30]} Be6 {[%emt 0:00:30]} 22. Rac1 {[%emt 0:06:30]} Rfc8 {[%emt 0:03:30]} 23. Rxc4 {[%emt 0:01:30]} Rxc4 {[%emt 0:00:30]} 24. Re2 {[%emt 0:02:30]} Qc3 {[%emt 0:15:30]} 25. Qxd6 {[%emt 0:04:30]} Qg3 {[%emt 0:00:30]} 26. Qd8+ {[%emt 0:01:30]} Kg7 {[%emt 0:04:30]} 27. Qd2 {[%emt 0:00:30]} Rc3 {[%emt 0:02:30]} 28. Qd4+ {[%emt 0:01:30]} Kh6 {[%emt 0:02:30]} 29. Qf2 {[%emt 0:03:30]} Bxb3 {[%emt 0:00:30]} 30. Qxg3 {[%emt 0:00:30]} Rxg3 {[%emt 0:00:30]} 31. axb3 {[%emt 0:00:30]} Rxb3 {[%emt 0:00:30]} 1/2-1/2

[Event "Turkish Second League 2019"]
[Site "Konya"]
[Date "2019.07.23"]
[Round "2"]
[White "Isik, Alparslan"]
[Black "Tofan, Ibrahim"]
[Result "0-1"]
[ECO "D38"]
[WhiteElo "2293"]
[BlackElo "2043"]
[Annotator "ChessBase"]
[PlyCount "50"]
[EventDate "2019.07.22"]
[EventType "team-tourn"]
[EventCountry "TUR"]
[SourceTitle "playchess.com"]
[Source "ChessBase"]
[SourceQuality "1"]
[TimeControl "5400+30"]

1. d4 {[%emt 0:01:30]} Nf6 {[%emt 0:00:30]} 2. c4 {[%emt 0:00:30]} e6 {[%emt 0:00:30]} 3. Nf3 {[%emt 0:00:00]} d5 {[%emt 0:01:30]} 4. Nc3 {[%emt 0:00:00]} Bb4 {[%emt 0:02:30]} 5. Qb3 {[%emt 0:04:30]} c5 {[%emt 0:04:30]} 6. dxc5 {[%emt 0:00:30]} Nc6 {[%emt 0:00:30]} 7. cxd5 {[%emt 0:03:30]} exd5 {[%emt 0:11:30]} 8. Bg5 {[%emt 0:15:30]} Be6 {[%emt 0:17:30]} 9. O-O-O {[%emt 0:06:30]} Qa5 {[%emt 0:04:30]} 10. Bxf6 {[%emt 0:05:30]} gxf6 {[%emt 0:00:30]} 11. Nxd5 {[%emt 0:06:30]} O-O-O {[%emt 0:01:30]} 12. e4 {[%emt 0:04:30]} f5 {[%emt 0:02:30]} 13. Ng5 {[%emt 0:12:30]} Qxc5+ {[%emt 0:12:30]} 14. Kb1 {[%emt 0:05:30]} fxe4 {[%emt 0:10:30]} 15. Nxe6 {[%emt 0:01:30]} fxe6 {[%emt 0:00:30]} 16. Rc1 {[%emt 0:03:30]} Qxd5 {[%emt 0:03:30]} 17. Qxb4 {[%emt 0:00:00]} Kb8 {[%emt 0:00:30]} 18. Qe1 {[%emt 0:12:31]} Rhf8 {[%emt 0:00:30]} 19. Bc4 {[%emt 0:00:58]} Qd4 {[%emt 0:02:30]} 20. Rc2 {[%emt 0:08:13]} Rf6 {[%emt 0:04:50]} 21. Qe2 {[%emt 0:05:11]} Nb4 {[%emt 0:01:08]} 22. Rc3 {[%emt 0:00:11]} Rxf2 {[%emt 0:00:46]} 23. Qg4 {[%emt 0:01:43]} Qd2 {[%emt 0:01:59]} 24. Rb3 {[%emt 0:00:13]} Rxg2 {[%emt 0:01:50]} 25. Qh5 {[%emt 0:00:13]} Qc2+ {[%emt 0:00:00]} 0-1

[Event "Turkish Second League 2019"]
[Site "Konya"]
[Date "2019.07.23"]
[Round "2"]
[White "Abdulla, Khayala"]
[Black "Aksoy, Ayca"]
[Result "1-0"]
[ECO "C10"]
[WhiteElo "2283"]
[BlackElo "1914"]
[Annotator "ChessBase"]
[PlyCount "55"]
[EventDate "2019.07.22"]
[EventType "team-tourn"]
[EventCountry "TUR"]
[SourceTitle "playchess.com"]
[Source "ChessBase"]
[SourceQuality "1"]
[TimeControl "5400+30"]

1. e4 {[%emt 0:00:30]} e6 {[%emt 0:00:30]} 2. d4 {[%emt 0:00:30]} d5 {[%emt 0:00:00]} 3. Nd2 {[%emt 0:03:30]} dxe4 {[%emt 0:05:00]} 4. Nxe4 {[%emt 0:00:30]} Nd7 {[%emt 0:00:30]} 5. Nf3 {[%emt 0:00:30]} Ngf6 {[%emt 0:00:30]} 6. Bd3 {[%emt 0:01:30]} Be7 {[%emt 0:00:30]} 7. c3 {[%emt 0:00:30]} O-O {[%emt 0:01:30]} 8. Qc2 {[%emt 0:00:30]} Nxe4 {[%emt 0:09:30]} 9. Bxe4 {[%emt 0:00:30]} Nf6 {[%emt 0:02:30]} 10. Bd3 {[%emt 0:00:30]} b6 {[%emt 0:03:30]} 11. Bg5 {[%emt 0:02:30]} h6 {[%emt 0:01:30]} 12. h4 {[%emt 0:01:30]} Bb7 {[%emt 0:01:30]} 13. O-O-O {[%emt 0:02:30]} Qd5 {[%emt 0:02:30]} 14. Kb1 {[%emt 0:05:30]} c5 {[%emt 0:12:30]} 15. dxc5 {[%emt 0:10:30]} Qxc5 {[%emt 0:00:30]} 16. Be3 {[%emt 0:00:30]} Qc7 {[%emt 0:05:30]} 17. Bd4 {[%emt 0:01:30]} a6 {[%emt 0:04:30]} 18. Rh3 {[%emt 0:07:30]} b5 {[%emt 0:04:30]} 19. Be5 {[%emt 0:04:30]} Qc5 {[%emt 0:03:30]} 20. Bd4 {[%emt 0:01:30]} Qc7 {[%emt 0:00:30]} 21. Re1 {[%emt 0:00:30]} Bd5 {[%emt 0:04:30]} 22. Ng5 {[%emt 0:07:30]} Nd7 {[%emt 0:06:30]} 23. Bh7+ {[%emt 0:03:30]} Kh8 {[%emt 0:00:00]} 24. Bg8 {[%emt 0:00:00]} f5 {[%emt 0:02:00]} 25. Bxe6 {[%emt 0:02:00]} Be4 {[%emt 0:06:30]} 26. Rxe4 {[%emt 0:01:30]} fxe4 {[%emt 0:00:00]} 27. Qxe4 {[%emt 0:00:30]} Nf6 {[%emt 0:01:00]} 28. Bxf6 {[%emt 0:00:00]} 1-0

[Event "Turkish Second League 2019"]
[Site "Konya"]
[Date "2019.07.23"]
[Round "2"]
[White "Buyukasik, Diyap"]
[Black "Tepe, Efe Can"]
[Result "1-0"]
[ECO "A05"]
[WhiteElo "2268"]
[BlackElo "2150"]
[Annotator "ChessBase"]
[PlyCount "89"]
[EventDate "2019.07.22"]
[EventType "team-tourn"]
[EventCountry "TUR"]
[SourceTitle "playchess.com"]
[Source "ChessBase"]
[SourceQuality "1"]
[TimeControl "5400+30"]

1. Nf3 {[%emt 0:00:30]} Nf6 2. g3 {[%emt 0:00:30]} g6 {[%emt 0:05:00]} 3. b4 {[%emt 0:03:30]} Bg7 {[%emt 0:00:30]} 4. Bb2 {[%emt 0:00:30]} O-O {[%emt 0:00:30]} 5. Bg2 {[%emt 0:01:30]} d6 {[%emt 0:04:30]} 6. O-O {[%emt 0:00:30]} e5 {[%emt 0:00:30]} 7. d3 {[%emt 0:01:30]} h6 {[%emt 0:08:30]} 8. Nbd2 {[%emt 0:01:30]} Be6 {[%emt 0:01:30]} 9. c4 {[%emt 0:02:30]} Qd7 {[%emt 0:01:30]} 10. Re1 {[%emt 0:05:30]} Bh3 {[%emt 0:02:30]} 11. Bh1 {[%emt 0:02:30]} Ng4 {[%emt 0:09:30]} 12. Qb3 {[%emt 0:04:30]} Qf5 {[%emt 0:07:30]} 13. c5 {[%emt 0:09:30]} Nc6 {[%emt 0:01:30]} 14. Rac1 {[%emt 0:11:30]} Nd4 {[%emt 0:18:30]} 15. Bxd4 {[%emt 0:00:30]} exd4 {[%emt 0:00:30]} 16. cxd6 {[%emt 0:00:30]} cxd6 {[%emt 0:00:00]} 17. Bg2 {[%emt 0:15:30]} Bxg2 {[%emt 0:05:00]} 18. Kxg2 {[%emt 0:00:30]} h5 {[%emt 0:00:00]} 19. h3 {[%emt 0:00:30]} Nxf2 {[%emt 0:12:00]} 20. Kxf2 {[%emt 0:04:30]} Qxh3 {[%emt 0:00:00]} 21. Rh1 {[%emt 0:07:30]} Qf5 {[%emt 0:00:00]} 22. Ne4 {[%emt 0:03:30]} d5 {[%emt 0:03:01]} 23. Ned2 {[%emt 0:09:33]} Rfe8 {[%emt 0:04:16]} 24. Rc2 {[%emt 0:04:22]} Re6 {[%emt 0:07:00]} 25. Nf1 {[%emt 0:01:16]} Bf6 {[%emt 0:01:27]} 26. Qb2 {[%emt 0:01:12]} Rae8 {[%emt 0:00:31]} 27. Qc1 {[%emt 0:01:06]} h4 {[%emt 0:06:02]} 28. gxh4 {[%emt 0:02:40]} Qg4 {[%emt 0:00:33]} 29. Rh2 {[%emt 0:01:35]} Kh7 {[%emt 0:01:23]} 30. h5 {[%emt 0:00:37]} gxh5 {[%emt 0:00:24]} 31. Ng3 {[%emt 0:03:16]} h4 {[%emt 0:00:34]} 32. Qg1 {[%emt 0:00:23]} Rg8 {[%emt 0:00:27]} 33. Nf1 {[%emt 0:00:29]} Qf4 {[%emt 0:00:11]} 34. Rg2 {[%emt 0:00:21]} Rge8 {[%emt 0:01:05]} 35. Qh2 {[%emt 0:00:48]} Qf5 {[%emt 0:00:30]} 36. Ng3 {[%emt 0:00:32]} Qf4 {[%emt 0:00:20]} 37. Nf1 {[%emt 0:00:45]} Qf5 {[%emt 0:00:30]} 38. Ng3 {[%emt 0:00:30]} Qf4 {[%emt 0:00:00]} 39. Nh5 {[%emt 0:00:10]} Qe3+ {[%emt 0:00:30]} 40. Kf1 {[%emt 0:00:11]} Be7 {[%emt 0:00:54]} 41. Qf4 {[%emt 0:00:13]} Qxf4 {[%emt 0:01:13]} 42. Nxf4 {[%emt 0:00:30]} Rh6 {[%emt 0:00:30]} 43. Nh3 {[%emt 0:00:35]} f6 {[%emt 0:00:08]} 44. Rc7 {[%emt 0:00:20]} Kh8 {[%emt 0:00:22]} 45. Nxd4 {[%emt 0:00:33]} 1-0

[Event "Turkish Second League 2019"]
[Site "Konya"]
[Date "2019.07.23"]
[Round "2"]
[White "Karaokcu, Erkin"]
[Black "Shanava, Konstantine"]
[Result "0-1"]
[ECO "A41"]
[WhiteElo "2256"]
[BlackElo "2538"]
[Annotator "ChessBase"]
[PlyCount "84"]
[EventDate "2019.07.22"]
[EventType "team-tourn"]
[EventCountry "TUR"]
[SourceTitle "playchess.com"]
[Source "ChessBase"]
[SourceQuality "1"]
[TimeControl "5400+30"]

1. Nf3 {[%emt 0:00:30]} d6 {[%emt 0:00:30]} 2. d4 {[%emt 0:00:30]} Bg4 {[%emt 0:00:00]} 3. Nbd2 {[%emt 0:00:30]} g6 {[%emt 0:00:00]} 4. h3 {[%emt 0:00:30]} Bd7 {[%emt 0:00:30]} 5. e4 {[%emt 0:02:30]} Bg7 {[%emt 0:00:30]} 6. Bd3 {[%emt 0:01:30]} Nc6 {[%emt 0:09:30]} 7. c3 {[%emt 0:05:30]} e6 {[%emt 0:04:30]} 8. O-O {[%emt 0:02:30]} Nge7 {[%emt 0:09:30]} 9. b4 {[%emt 0:08:30]} h6 {[%emt 0:01:30]} 10. Bb2 {[%emt 0:01:30]} g5 {[%emt 0:01:30]} 11. Re1 {[%emt 0:00:30]} Ng6 {[%emt 0:02:30]} 12. b5 {[%emt 0:13:30]} Nce7 {[%emt 0:12:30]} 13. e5 {[%emt 0:03:30]} d5 {[%emt 0:01:30]} 14. g3 {[%emt 0:04:30]} Nf5 {[%emt 0:03:30]} 15. Qc2 {[%emt 0:07:30]} Kf8 {[%emt 0:11:30]} 16. c4 {[%emt 0:06:30]} dxc4 {[%emt 0:02:30]} 17. Qxc4 {[%emt 0:04:30]} Nfe7 {[%emt 0:02:30]} 18. Ne4 {[%emt 0:02:30]} Nd5 {[%emt 0:00:30]} 19. a4 {[%emt 0:00:30]} Kg8 {[%emt 0:01:30]} 20. Nc5 {[%emt 0:05:30]} Bc8 {[%emt 0:00:30]} 21. Bc1 {[%emt 0:01:30]} b6 {[%emt 0:07:30]} 22. Ne4 {[%emt 0:01:30]} a6 {[%emt 0:00:30]} 23. Bd2 {[%emt 0:00:00]} Bb7 {[%emt 0:00:00]} 24. Qb3 {[%emt 0:01:00]} a5 {[%emt 0:09:24]} 25. Rac1 {[%emt 0:03:30]} Bf8 {[%emt 0:02:56]} 26. Bb1 {[%emt 0:07:51]} Be7 {[%emt 0:00:32]} 27. Qc4 {[%emt 0:01:00]} Kg7 {[%emt 0:01:03]} 28. Qe2 {[%emt 0:01:26]} Qd7 {[%emt 0:02:13]} 29. Nh2 {[%emt 0:01:34]} c6 {[%emt 0:06:34]} 30. Bd3 {[%emt 0:02:28]} Nb4 {[%emt 0:01:37]} 31. bxc6 {[%emt 0:03:44]} Nxc6 {[%emt 0:01:44]} 32. Bb5 {[%emt 0:00:20]} Qd5 {[%emt 0:00:28]} 33. Nf3 {[%emt 0:03:14]} Nxd4 {[%emt 0:02:23]} 34. Nxd4 {[%emt 0:00:11]} Qxd4 {[%emt 0:00:00]} 35. Rc4 {[%emt 0:00:17]} Qd5 {[%emt 0:00:00]} 36. Be3 {[%emt 0:01:43]} Rhd8 {[%emt 0:00:58]} 37. Bxb6 {[%emt 0:00:32]} Nxe5 {[%emt 0:00:12]} 38. Bxd8 {[%emt 0:02:14]} Rxd8 {[%emt 0:00:12]} 39. Rcc1 {[%emt 0:00:57]} Bb4 {[%emt 0:00:46]} 40. Rcd1 {[%emt 0:00:48]} Qxe4 {[%emt 0:00:38]} 41. Qxe4 {[%emt 0:00:30]} Bxe4 {[%emt 0:00:00]} 42. Rxd8 {[%emt 0:00:00]} Bxe1 {[%emt 0:00:00]} 0-1

[Event "Turkish Second League 2019"]
[Site "Konya"]
[Date "2019.07.23"]
[Round "2"]
[White "Ozturk, Emir"]
[Black "Erdogan, Yunus Emre"]
[Result "0-1"]
[ECO "A59"]
[WhiteElo "2216"]
[BlackElo "1833"]
[Annotator "ChessBase"]
[PlyCount "66"]
[EventDate "2019.07.22"]
[EventType "team-tourn"]
[EventCountry "TUR"]
[SourceTitle "playchess.com"]
[Source "ChessBase"]
[SourceQuality "1"]
[TimeControl "5400+30"]

1. d4 {[%emt 0:00:30]} Nf6 {[%emt 0:00:30]} 2. c4 {[%emt 0:00:30]} c5 {[%emt 0:00:30]} 3. d5 {[%emt 0:00:00]} b5 {[%emt 0:00:30]} 4. cxb5 {[%emt 0:00:00]} a6 {[%emt 0:00:30]} 5. bxa6 {[%emt 0:00:30]} g6 {[%emt 0:00:00]} 6. Nc3 {[%emt 0:00:30]} Bxa6 {[%emt 0:00:00]} 7. e4 {[%emt 0:00:30]} Bxf1 {[%emt 0:00:00]} 8. Kxf1 {[%emt 0:00:00]} d6 {[%emt 0:00:00]} 9. Nge2 {[%emt 0:00:00]} Bg7 {[%emt 0:00:30]} 10. g3 {[%emt 0:00:30]} O-O {[%emt 0:00:30]} 11. Kg2 {[%emt 0:00:30]} Nbd7 {[%emt 0:00:00]} 12. Qc2 {[%emt 0:00:30]} Qa5 {[%emt 0:03:00]} 13. Bd2 {[%emt 0:08:30]} Rfb8 {[%emt 0:07:30]} 14. f3 {[%emt 0:11:30]} Ne5 {[%emt 0:06:30]} 15. b3 {[%emt 0:03:30]} c4 {[%emt 0:14:30]} 16. f4 {[%emt 0:06:30]} Nd3 {[%emt 0:07:30]} 17. bxc4 {[%emt 0:07:30]} Nb4 {[%emt 0:00:30]} 18. Qc1 {[%emt 0:01:30]} Qc5 {[%emt 0:01:30]} 19. e5 {[%emt 0:14:30]} dxe5 {[%emt 0:16:30]} 20. fxe5 {[%emt 0:00:30]} Ng4 {[%emt 0:00:30]} 21. Ne4 {[%emt 0:02:30]} Qa7 {[%emt 0:00:30]} 22. h3 {[%emt 0:28:46]} Nxe5 {[%emt 0:07:30]} 23. Be3 {[%emt 0:04:14]} Qa6 {[%emt 0:02:30]} 24. Bd4 {[%emt 0:01:48]} Nxc4 {[%emt 0:10:30]} 25. Bxg7 {[%emt 0:00:56]} Kxg7 {[%emt 0:00:30]} 26. Nf4 {[%emt 0:00:45]} Nc2 {[%emt 0:02:14]} 27. Kh2 {[%emt 0:03:16]} Nxa1 {[%emt 0:00:23]} 28. Qxa1+ {[%emt 0:00:38]} Kg8 {[%emt 0:00:04]} 29. Nc3 {[%emt 0:00:38]} Rb2+ {[%emt 0:01:39]} 30. Nfe2 {[%emt 0:00:55]} Qf6 {[%emt 0:00:13]} 31. Qe1 {[%emt 0:01:09]} Nd2 {[%emt 0:01:42]} 32. Kg2 {[%emt 0:01:28]} Qf3+ {[%emt 0:01:11]} 33. Kh2 {[%emt 0:00:26]} Qxc3 {[%emt 0:00:22]} 0-1

[Event "Turkish Second League 2019"]
[Site "Konya"]
[Date "2019.07.23"]
[Round "2"]
[White "Topak, Engin"]
[Black "Karaoglan, Doruk"]
[Result "1-0"]
[ECO "A65"]
[WhiteElo "2206"]
[BlackElo "2278"]
[Annotator "ChessBase"]
[PlyCount "81"]
[EventDate "2019.07.22"]
[EventType "team-tourn"]
[EventCountry "TUR"]
[SourceTitle "playchess.com"]
[Source "ChessBase"]
[SourceQuality "1"]
[TimeControl "5400+30"]

1. d4 {[%emt 0:00:30]} Nf6 {[%emt 0:01:30]} 2. c4 {[%emt 0:00:30]} g6 {[%emt 0:00:30]} 3. Nc3 {[%emt 0:00:00]} Bg7 {[%emt 0:00:30]} 4. e4 {[%emt 0:00:00]} d6 {[%emt 0:00:00]} 5. f3 {[%emt 0:01:30]} O-O {[%emt 0:00:00]} 6. Be3 {[%emt 0:00:30]} c5 {[%emt 0:00:00]} 7. d5 {[%emt 0:04:30]} e6 {[%emt 0:02:00]} 8. Qd2 {[%emt 0:01:30]} exd5 {[%emt 0:02:30]} 9. cxd5 {[%emt 0:00:00]} Re8 {[%emt 0:01:30]} 10. Nge2 {[%emt 0:18:00]} Nbd7 {[%emt 0:21:30]} 11. Ng3 {[%emt 0:05:30]} h5 {[%emt 0:03:30]} 12. Be2 {[%emt 0:01:30]} Ne5 {[%emt 0:03:30]} 13. O-O {[%emt 0:07:30]} h4 {[%emt 0:19:30]} 14. Nh1 {[%emt 0:00:30]} Nh7 {[%emt 0:03:30]} 15. Nf2 {[%emt 0:03:30]} f5 {[%emt 0:01:30]} 16. exf5 {[%emt 0:27:30]} gxf5 {[%emt 0:06:30]} 17. Bh6 {[%emt 0:07:27]} Bf6 {[%emt 0:00:30]} 18. Nh3 {[%emt 0:01:57]} Nf7 {[%emt 0:00:30]} 19. Bf4 {[%emt 0:00:50]} Nf8 {[%emt 0:01:30]} 20. Bd3 {[%emt 0:03:10]} Ng6 {[%emt 0:14:53]} 21. Qc2 {[%emt 0:01:10]} Bd4+ {[%emt 0:08:01]} 22. Kh1 {[%emt 0:00:16]} Qf6 {[%emt 0:04:09]} 23. Bd2 {[%emt 0:05:33]} a6 {[%emt 0:00:28]} 24. Ne2 {[%emt 0:04:45]} Bxb2 {[%emt 0:01:46]} 25. Rab1 {[%emt 0:00:05]} Rxe2 {[%emt 0:00:12]} 26. Bxe2 {[%emt 0:00:11]} Bd4 {[%emt 0:00:00]} 27. f4 {[%emt 0:01:37]} b5 {[%emt 0:00:00]} 28. Ng5 {[%emt 0:00:30]} Bb7 {[%emt 0:00:35]} 29. Bf3 {[%emt 0:00:39]} Ne7 {[%emt 0:02:02]} 30. Rbe1 {[%emt 0:00:36]} Nd8 {[%emt 0:01:19]} 31. Ne6 {[%emt 0:02:05]} Nxe6 {[%emt 0:00:45]} 32. Rxe6 {[%emt 0:00:30]} Qf7 {[%emt 0:00:30]} 33. Rxd6 {[%emt 0:00:30]} Bxd5 {[%emt 0:00:30]} 34. Bc3 {[%emt 0:00:30]} Bxc3 {[%emt 0:00:30]} 35. Qxc3 {[%emt 0:00:30]} Bxf3 {[%emt 0:00:30]} 36. gxf3 {[%emt 0:00:30]} Kh7 {[%emt 0:00:30]} 37. Qxc5 {[%emt 0:00:30]} Rc8 {[%emt 0:00:30]} 38. Qf2 {[%emt 0:01:35]} Ng6 {[%emt 0:01:11]} 39. Rg1 {[%emt 0:00:30]} Rg8 {[%emt 0:00:00]} 40. Rxa6 {[%emt 0:00:00]} Qc7 {[%emt 0:00:30]} 41. Ra7 {[%emt 0:00:00]} 1-0

[Event "Turkish Second League 2019"]
[Site "Konya"]
[Date "2019.07.23"]
[Round "2"]
[White "Kizilkus, Akin"]
[Black "Ozenir, Ekin Baris"]
[Result "0-1"]
[ECO "E46"]
[WhiteElo "2162"]
[BlackElo "2235"]
[Annotator "ChessBase"]
[PlyCount "90"]
[EventDate "2019.07.22"]
[EventType "team-tourn"]
[EventCountry "TUR"]
[SourceTitle "playchess.com"]
[Source "ChessBase"]
[SourceQuality "1"]
[TimeControl "5400+30"]

1. d4 {[%emt 0:00:30]} Nf6 {[%emt 0:00:30]} 2. c4 {[%emt 0:00:30]} e6 {[%emt 0:00:30]} 3. Nc3 {[%emt 0:00:30]} Bb4 {[%emt 0:00:30]} 4. e3 {[%emt 0:00:00]} O-O {[%emt 0:00:30]} 5. Nge2 {[%emt 0:00:00]} d5 {[%emt 0:00:30]} 6. a3 {[%emt 0:00:00]} Bd6 {[%emt 0:00:00]} 7. Ng3 {[%emt 0:00:00]} c5 {[%emt 0:02:00]} 8. dxc5 {[%emt 0:00:00]} Bxc5 {[%emt 0:01:30]} 9. b4 {[%emt 0:00:00]} Be7 {[%emt 0:02:30]} 10. Bb2 {[%emt 0:02:30]} a5 {[%emt 0:13:30]} 11. b5 {[%emt 0:05:30]} dxc4 {[%emt 0:04:30]} 12. Bxc4 {[%emt 0:02:30]} Nbd7 {[%emt 0:03:30]} 13. O-O {[%emt 0:18:30]} Qc7 {[%emt 0:07:30]} 14. Qe2 {[%emt 0:06:30]} b6 {[%emt 0:10:30]} 15. Rac1 {[%emt 0:15:30]} Bb7 {[%emt 0:05:30]} 16. Bd3 {[%emt 0:06:30]} Qd8 {[%emt 0:10:30]} 17. f4 {[%emt 0:07:30]} Re8 {[%emt 0:06:30]} 18. Kh1 {[%emt 0:08:30]} Rc8 {[%emt 0:08:30]} 19. Bb1 {[%emt 0:05:41]} Rc7 {[%emt 0:03:05]} 20. e4 {[%emt 0:04:42]} e5 {[%emt 0:05:14]} 21. f5 {[%emt 0:04:04]} Nc5 {[%emt 0:02:40]} 22. Rcd1 {[%emt 0:02:00]} Qa8 {[%emt 0:02:01]} 23. Nd5 {[%emt 0:01:21]} Bxd5 {[%emt 0:01:18]} 24. exd5 {[%emt 0:00:17]} Bd6 {[%emt 0:00:49]} 25. Nh5 {[%emt 0:02:18]} Nxh5 {[%emt 0:04:08]} 26. Qxh5 {[%emt 0:00:30]} f6 {[%emt 0:01:07]} 27. Qg4 {[%emt 0:04:17]} Qd8 {[%emt 0:02:16]} 28. Rf3 {[%emt 0:00:29]} Qe7 {[%emt 0:00:47]} 29. a4 {[%emt 0:02:25]} Rec8 {[%emt 0:00:43]} 30. Rh3 {[%emt 0:01:02]} Qf7 {[%emt 0:00:54]} 31. Qh4 {[%emt 0:00:23]} h6 {[%emt 0:00:29]} 32. Rg3 {[%emt 0:00:06]} Kf8 {[%emt 0:00:36]} 33. Re3 {[%emt 0:01:16]} Nb7 {[%emt 0:00:48]} 34. Re4 {[%emt 0:00:16]} Bc5 {[%emt 0:00:33]} 35. d6 {[%emt 0:00:41]} Nxd6 {[%emt 0:00:12]} 36. Rg4 {[%emt 0:00:36]} Rd7 {[%emt 0:00:36]} 37. Qe1 {[%emt 0:00:24]} Rcd8 {[%emt 0:00:13]} 38. Rc1 {[%emt 0:00:22]} Qh5 {[%emt 0:00:54]} 39. h3 {[%emt 0:00:34]} Nxf5 {[%emt 0:00:33]} 40. Re4 {[%emt 0:00:42]} Nd4 {[%emt 0:00:26]} 41. Ba2 {[%emt 0:00:27]} Nc2 {[%emt 0:00:36]} 42. Qc3 {[%emt 0:00:25]} Rd1+ {[%emt 0:00:39]} 43. Rxd1 {[%emt 0:00:30]} Qxd1+ {[%emt 0:00:00]} 44. Kh2 {[%emt 0:00:18]} Bg1+ {[%emt 0:00:00]} 45. Kg3 {[%emt 0:00:10]} Rd3+ {[%emt 0:00:00]} 0-1

[Event "Turkish Second League 2019"]
[Site "Konya"]
[Date "2019.07.23"]
[Round "2"]
[White "Duman, Aydin"]
[Black "Demirci, Fatih"]
[Result "1-0"]
[ECO "B14"]
[WhiteElo "2059"]
[BlackElo "1763"]
[Annotator "NA"]
[PlyCount "111"]
[EventDate "2019.07.22"]
[EventType "team-tourn"]
[EventCountry "TUR"]
[SourceTitle "playchess.com"]
[Source "ChessBase"]
[SourceQuality "1"]
[TimeControl "5400+30"]

1. e4 {[%emt 0:00:30]} c6 {[%emt 0:00:30]} 2. c4 {[%emt 0:00:00]} d5 {[%emt 0:00:00]} 3. exd5 {[%emt 0:00:00]} cxd5 {[%emt 0:00:00]} 4. d4 {[%emt 0:00:30]} Nf6 {[%emt 0:00:30]} 5. Nc3 {[%emt 0:00:00]} g6 {[%emt 0:01:30]} 6. Qb3 {[%emt 0:00:00]} Bg7 {[%emt 0:00:30]} 7. cxd5 {[%emt 0:00:00]} O-O {[%emt 0:00:30]} 8. Nge2 {[%emt 0:01:00]} Nbd7 {[%emt 0:10:30]} 9. g3 {[%emt 0:00:30]} Nb6 {[%emt 0:03:30]} 10. Bg2 {[%emt 0:00:00]} Bf5 {[%emt 0:02:30]} 11. O-O {[%emt 0:00:00]} Bd3 {[%emt 0:01:30]} 12. d6 {[%emt 0:03:30]} exd6 {[%emt 0:08:30] B14: Caro-Kann: Panov-Botvinnik Attack with 5...e6 and 5...g6} 13. Bxb7 {[%emt 0:01:30] [#]} d5 $146 {[%emt 0:08:30]} ({Predecessor:} 13... Rb8 14. Bf3 Qd7 15. Nd5 Bxe2 16. Nxf6+ Bxf6 17. Bxe2 Bxd4 18. Bh6 Rfc8 19. Rad1 Be5 20. Ba6 {½-½ (31) Kobese,W (2390)-Rogers,I (2564) Turin 2006}) 14. Bxa8 {[%emt 0:00:30]} Qxa8 {[%emt 0:00:30]} 15. Qd1 {[%emt 0:05:30]} Bf5 {[%emt 0:01:30]} 16. Nf4 {[%emt 0:00:30]} Ne4 {[%emt 0:02:30]} 17. f3 {[%emt 0:01:30]} Nxc3 {[%emt 0:05:30]} 18. bxc3 {[%emt 0:00:00]} Qc6 {[%emt 0:00:30]} 19. Qb3 {[%emt 0:05:00]} Rc8 {[%emt 0:03:30]} 20. g4 {[%emt 0:01:30]} Bd7 {[%emt 0:00:30]} 21. Ne2 {[%emt 0:17:30]} Qe6 {[%emt 0:03:30]} 22. Nf4 {[%emt 0:01:30]} (22. Rf2 $16) 22... Qc6 $1 {[%emt 0:01:30]} 23. Be3 {[%emt 0:08:30]} Nc4 {[%emt 0:00:30]} 24. Ng2 {[%emt 0:02:30]} h5 {[%emt 0:12:30]} 25. h3 {[%emt 0:01:30]} Qa6 {[%emt 0:10:30]} 26. Rab1 {[%emt 0:11:30]} hxg4 $18 {[%emt 0:03:06]} 27. fxg4 {[%emt 0:03:30]} Nxe3 {[%emt 0:02:16]} 28. Nxe3 {[%emt 0:01:30]} Qd3 {[%emt 0:00:02]} 29. Rbe1 {[%emt 0:07:30]} Bh6 {[%emt 0:05:39]} 30. Rf3 {[%emt 0:06:30]} Re8 {[%emt 0:02:47]} 31. Qxd5 {[%emt 0:01:30]} Be6 {[%emt 0:04:02]} 32. Nf5 {[%emt 0:02:05]} Qd2 {[%emt 0:01:19]} 33. Nxh6+ {[%emt 0:00:25]} Qxh6 {[%emt 0:02:32]} 34. Qe5 {[%emt 0:00:39]} Rd8 {[%emt 0:00:40]} 35. Qf4 {[%emt 0:01:04]} Qh4 {[%emt 0:00:47]} 36. Rxe6 {[%emt 0:08:27]} fxe6 {[%emt 0:00:05]} 37. Qf7+ {[%emt 0:00:12]} Kh8 {[%emt 0:00:00]} 38. Qf6+ {[%emt 0:00:35]} Qxf6 {[%emt 0:00:29]} 39. Rxf6 {[%emt 0:00:00]} Rc8 {[%emt 0:00:23]} 40. Rf3 {[%emt 0:00:00]} Kg7 {[%emt 0:00:10]} 41. Kf2 {[%emt 0:00:16]} Rc6 {[%emt 0:00:00]} 42. Re3 {[%emt 0:00:51]} Kf6 {[%emt 0:00:20]} 43. Kf3 {[%emt 0:01:59]} g5 {[%emt 0:02:24]} 44. Ke4 {[%emt 0:00:13]} Rb6 {[%emt 0:00:38]} 45. Rf3+ {[%emt 0:00:30]} Ke7 {[%emt 0:00:21]} 46. c4 {[%emt 0:00:37]} Ra6 {[%emt 0:00:01]} 47. a3 {[%emt 0:00:16]} Ra4 {[%emt 0:00:07]} 48. c5 {[%emt 0:00:10]} Rc4 {[%emt 0:00:03]} 49. Rb3 {[%emt 0:00:24]} Kf6 {[%emt 0:01:08]} 50. Kd3 {[%emt 0:01:29]} Rc1 {[%emt 0:00:25]} 51. Rc3 {[%emt 0:00:01]} Rb1 {[%emt 0:01:14]} 52. c6 {[%emt 0:00:12]} Rb8 {[%emt 0:00:06]} 53. c7 {[%emt 0:00:30]} Rc8 {[%emt 0:00:30]} 54. Ke4 {[%emt 0:00:00]} Ke7 {[%emt 0:00:00]} 55. Ke5 {[%emt 0:00:21]} Kd7 {[%emt 0:00:25]} 56. Rc5 {[%emt 0:00:00]} 1-0